Workbook

Sheet Refractory Materials
A2: FURNACE TYPE | B2: CONSUMABLES FOR SMELTER | C2: Specification | D2: MONTHLY CONSUMPTION (as and when required)** | E2: 12 MONTHS CONSUMPTION (as and when required)** | F2: Item quantities/Description | G2: Industry
A4: Test Smelter Furnace | B4: Refractory lining material | C4: Alumina Spinel | D4: 4 | E4: =+D4*12 -> 48 | F4: bag | G4: Refractory suppliers
A5: Test Smelter Furnace | B5: Refractory lining material installation (labour) | C5: Labour | D5: 1 | E5: =+D5*12 -> 12 | F5: labour - 1 day | G5: Refractory suppliers
A6: Test Smelter Furnace | B6: Coil Grout material | C6: Alumina Special Induction Coil refractory | D6: 25 | E6: 300 | F6: bags | G6: Refractory suppliers
A7: Test Smelter Furnace | B7: Coil Grout installation (labour ) | C7: Labour | D7: 1 | E7: 12 | F7: labour - 1 day | G7: Refractory suppliers
A8: Test Smelter Furnace | B8: Steel former (made of carbon/mild steel) | C8: Steel former for a 125kg induction furnace (made of carbon/mild steel) | D8: 1 | E8: 12 | F8: former | G8: Refractory suppliers
A9: 4 ton Furnace Ferrous Metals | B9: Refractory lining material | C9: Alumina Spinel | D9: 2125 | E9: =+D9*12 -> 25500 | F9: Mass in kg -bags | G9: Refractory suppliers
A10: 4 ton Furnace Ferrous Metals | B10: Refractory lining material installation (labour) | C10: Labour | D10: 1 | E10: 12 | F10: labour | G10: Refractory suppliers
A11: 4 ton Furnace Ferrous Metals | B11: Coil Grout material | C11: Alumina Special Induction Coil refractory | D11: 500 | E11: 6000 | F11: Mass in kg - bags | G11: Refractory suppliers
A12: 4 ton Furnace Ferrous Metals | B12: Castable refractory lining materials for lining the 4 ton ladle | C12: Quick cast 62 ZA | D12: =1525*2 -> 3050 | E12: 36600 | F12: Mass in kg -bags | G12: Refractory suppliers
A13: 4 ton Furnace Ferrous Metals | B13: Custable refractory lining materials for lining 1 ton ladle | C13: Quick cast 62 ZA | D13: =325*2 -> 650 | E13: 7800 | F13: Mass in kg -bags | G13: Refractory suppliers
A14: 4 ton Furnace Ferrous Metals | B14: Steel former (made of carbon/mild steel) | C14: Steel former for a 4 ton furnace induction furnace (made of carbon/mild steel) | D14: 1 | E14: 12 | F14: Former | G14: Refractory suppliers
A15: 4 ton Furnace Non-Ferrous | B15: Refractory lining material | C15: Magnesia–chrome (MgCr2O4 | D15: 2125 | E15: 25500 | F15: Mass in kg -bags | G15: Refractory suppliers
A16: 4 ton Furnace Non-Ferrous | B16: Refractory lining material installation (labour) | C16: Labour | D16: 1 | E16: 12 | F16: labour | G16: Refractory suppliers
A17: 4 ton Furnace Non-Ferrous | B17: Coil Grout material | C17: Alumina Special Induction Coil refractory | D17: 500 | E17: =+D17*12 -> 6000 | F17: Mass in kg - bags | G17: Refractory suppliers
A18: 4 ton Furnace Non-Ferrous | B18: Castable refractory lining materials for lining the 4 ton ladle | C18: Quick cast 62 ZA | D18: 1 | E18: 12 | F18: LABOUR AND MIXING EQUIPMENT ONLY | G18: Refractory suppliers
A19: 4 ton Furnace Non-Ferrous | B19: Custable refractory lining materials for lining 1 ton ladle | C19: Quick cast 62 ZA | D19: 1 | E19: 12 | F19: LABOUR AND MIXING EQUIPMENT ONLY | G19: Refractory suppliers
A20: 4 ton Furnace Non-Ferrous | B20: Steel former (made of carbon/mild steel) | C20: Steel former for a 4 ton furnace induction furnace (made of carbon/mild steel) | D20: 1 | E20: 12 | F20: Former | G20: Refractory suppliers

Sheet Sheet1 (hidden)
A2: FURNACE TYPE | C2: CONSUMABLES FOR SMELTER | D2: MONTHLY CONSUMPTION (as and when required)** | E2: 36 MONTHS CONSUMPTION (as and when required)** | F2: Price per unit | G2: Total price per month | H2: Total cost for 36 months | I2: Item quantities/Description | J2: Industry
J3: Refractory suppliers
A4: Test Smelter Furnace | B4: 1 | C4: Refractory lining material | D4: 4 | E4: =+D4*36 -> 144 | F4: =15000/D4 -> R3,750.00 | G4: R15,000.00 | H4: =G4*36 -> R540,000.00 | I4: bag | J4: Refractory suppliers
B5: 2 | C5: Refractory lining material installation (labour) | D5: 1 | E5: =+D5*36 -> 36 | F5: R8,652.00 | G5: =F5*D5 -> R8,652.00 | H5: R311,472.00 | I5: labour - 1 day | J5: Refractory suppliers
B6: 3 | C6: Coil Grout material | D6: 25 | E6: =+D6*36 -> 900 | F6: R44.72 | G6: =F6*D6 -> R1,118.00 | H6: R40,248.00 | I6: bags | J6: Refractory suppliers
B7: 4 | C7: Coil Grout installation (labour ) | D7: 1 | E7: =+D7*36 -> 36 | F7: R8,652.00 | G7: =F7*D7 -> R8,652.00 | H7: R311,472.00 | I7: labour - 1 day | J7: Refractory suppliers
B8: 5 | C8: Steel former (made of carbon/mild steel) | D8: 1 | E8: =+D8*36 -> 36 | F8: R4,390.00 | G8: =F8*D8 -> R4,390.00 | H8: R158,040.00 | I8: former | J8: Refractory suppliers
B9: 6 | C9: Electrode panels(SAVEWAY ELECTRODE PANEL SET. 125KG TEST FURNACE. 3 PER SET (1xB-PANEL, 2xC-PANELS,H:470) | D9: 1 | E9: =+D9*36 -> 36 | F9: R9,816.86 | G9: =F9*D9 -> R9,816.86 | H9: R353,406.96 | I9: 3 PER SET (1xB-PANEL | J9: Sole supplier (Saveway)
B10: 7 | C10: SAVEWAY TECHNICIAN. NORMAL HOURS. 865t1 (labour) | D10: 1 | E10: =D10*36 -> 36 | F10: R650.00 | G10: =650*8*2 -> R10,400.00 | H10: =G10*36 -> R374,400.00 | I10: labour | J10: Sole supplier (Saveway)
B11: 8 | C11: Earth detector/Spider | D11: 1 | E11: 36 | F11: R1,500.00 | G11: R1,500.00 | H11: =G11*36 -> R54,000.00 | I11: spider (Per furnace reline ) | J11: Sole supplier (Saveway)
B12: 9 | C12: Copper coil | D12: 1 | E12: 1 | F12: R100,000.00 | G12: =F12*D12 -> R100,000.00 | H12: =+G12 -> R100,000.00 | I12: coil (once-off purchase) | J12: Furnace supliers
B13: 10 | C13: Thermocouple S-Type | D13: 4 | E13: =+D13*36 -> 144 | F13: R5,200.00 | G13: R20,800.00 | H13: R748,800.00 | I13: thermocouple | J13: Instrumentation suppliers
B14: 11 | C14: Thermocouple K-Type | D14: 4 | E14: =+D14*36 -> 144 | F14: R639.00 | G14: R2,556.00 | H14: R92,016.00 | I14: thermocouple | J14: Instrumentation suppliers
B15: 12 | C15: Thermocouple S-Type 2 meter extention cables | D15: 4 | E15: =+D15*36 -> 144 | F15: R159.00 | G15: =F15*D15 -> R636.00 | H15: =G15*36 -> R22,896.00 | I15: Cables | J15: Instrumentation suppliers
B16: 13 | C16: Thermocouple K-Type 2 meter extention cables | D16: 4 | E16: =+D16*36 -> 144 | F16: R149.00 | G16: R596.00 | H16: R21,456.00 | I16: Cables | J16: Instrumentation suppliers
B17: 14 | C17: Steel former (made of carbon/mild steel) | D17: 1 | E17: 36 | F17: R11,087.00 | G17: =+F17 -> R11,087.00 | H17: =+G17*E17 -> R399,132.00 | I17: former | J17: Refractory suppliers
A20: 4 ton Furnace Ferrous Metals | B20: 1 | C20: Refractory lining material | D20: 2125 | E20: =+D20*36 -> 76500 | F20: R34.20 | G20: =F20*D20 -> R72,675.00 | H20: =G20*36 -> R2,616,300.00 | I20: Mass in kg -bags | J20: Refractory suppliers
B21: 2 | C21: Refractory lining material installation (labour) | D21: 1 | E21: =+D21*36 -> 36 | F21: R24,636.00 | G21: =F21*D21 -> R24,636.00 | H21: =G21*36 -> R886,896.00 | I21: labour | J21: Refractory suppliers
B22: 3 | C22: Coil Grout material | D22: 500 | E22: =+D22*36 -> 18000 | F22: R44.72 | G22: =F22*D22 -> R22,360.00 | H22: =G22*36 -> R804,960.00 | I22: Mass in kg - bags | J22: Refractory suppliers
B23: 4 | C23: Refractory lining installation for 4 ton ladle (labour) | D23: 1 | E23: 36 | F23: R36,954.00 | G23: =F23*D23 -> R36,954.00 | H23: =G24*36 -> R556,200.00 | I23: LABOUR AND MIXING EQUIPMENT ONLY | J23: Refractory suppliers
B24: 5 | C24: Refractory lining installation for 1 tons ladle (labour) | D24: 1 | E24: 36 | F24: R15,450.00 | G24: =F24*D24 -> R15,450.00 | H24: =G23*36 -> R1,330,344.00 | I24: LABOUR AND MIXING EQUIPMENT ONLY | J24: Refractory suppliers
B25: 6 | C25: Steel former (made of carbon/mild steel) | D25: 1 | E25: 36 | F25: R38,912.00 | G25: =F25*D25 -> R38,912.00 | H25: R1,400,832.00 | I25: Former | J25: Refractory suppliers
B26: 7 | C26: SAVEWAY ELECTRODE PANEL SET. 4T PILLAR FURNACE. 7 PER SET (7xA-PANELS. H:1400) | D26: 1 | E26: =D26*36 -> 36 | F26: R44,854.40 | G26: =F26*D26 -> R44,854.40 | H26: =G26*36 -> R1,614,758.40 | I26: Set = Each(Use for every reline) | J26: Sole supplier (Saveway)
B27: 8 | C27: SAVEWAY FOIL:RF 4;25MX1MX0.42MM;PGP0042 25m/1x1000mm | D27: 1 | E27: =D27*36 -> 36 | F27: R27,163.91 | G27: R27,163.91 | H27: =G27*36 -> R977,900.70 | I27: Roll = 25m(Minor amount utilised per reline) | J27: Sole supplier (Saveway)
B28: 9 | C28: SAVEWAY FOIL:RF 4;25MX500MMX0.42MM;PGP0042 25m/2x500mm | D28: 1 | E28: 36 | F28: R27,571.37 | G28: R27,571.37 | H28: R992,569.21 | I28: Roll = 25m(Minor amount utilised per reline) | J28: Sole supplier (Saveway)
B29: 10 | C29: SAVEWAY FOIL:RF 4;25MX330X0.42MM;PGP0042 25m/3x330mm | D29: 1 | E29: 36 | F29: R27,978.83 | G29: R27,978.83 | H29: =G29*36 -> R1,007,237.72 | I29: Roll = 25m(Minor amount utilised per reline) | J29: Sole supplier (Saveway)
B30: 11 | C30: SAVEWAY SILICONE: E-PANEL; 300ML TUBE. 701 | D30: 1 | E30: 36 | F30: R8,717.91 | G30: R8,717.91 | H30: R313,844.67 | I30: Box = 20 tubes(Use for every reline) | J30: Sole supplier (Saveway)
B31: 12 | C31: SAVEWAY GREASE:CERAMIC,ANTI-SEIZE;500ML;CAN. 2202 | D31: 1 | E31: 36 | F31: R3,415.86 | G31: R3,415.86 | H31: R122,971.05 | I31: Each(Minor amount utilised per reline) | J31: Sole supplier (Saveway)
B32: 13 | C32: SAVEWAY BOLT,MACHINE:SS;II M12 X 35, 18-8 SS. 586 | D32: 1 | E32: 36 | F32: R207.37 | G32: R207.37 | H32: R7,465.36 | I32: Each(Replace when needed) | J32: Sole supplier (Saveway)
B33: 14 | C33: SAVEWAY WASHER, LOCK:12d=12.5MM A2. 587 | D33: 1 | E33: 36 | F33: R18.49 | G33: R18.49 | H33: R665.72 | I33: Each(Replace when needed) | J33: Sole supplier (Saveway)
B34: 15 | C34: SAVEWAY NUT, HEX: M12 A2. 588 | D34: 1 | E34: 36 | F34: R25.66 | G34: R25.66 | H34: R923.86 | I34: Each(Replace when needed) | J34: Sole supplier (Saveway)
B35: 16 | C35: SAVEWAY NUT, CAP: M12 A2. 589 | D35: 1 | E35: 36 | F35: R113.18 | G35: R113.18 | H35: R4,074.64 | I35: Each(Replace when needed) | J35: Sole supplier (Saveway)
B36: 17 | C36: SPACER: PIECE; 8 X 8 X 1.6MM; BRASS. 593 | D36: 1 | E36: 36 | F36: R46.23 | G36: R46.23 | H36: R1,664.25 | I36: Each(Replace when needed) | J36: Sole supplier (Saveway)
B37: 18 | C37: SAVEWAY STUD: CONNECTING; TYPE 2; W/3M WIRE. 1428 | D37: 1 | E37: 36 | F37: R3,918.80 | G37: R3,918.80 | H37: R141,076.64 | I37: Each(Supplied with Rim Blocks) | J37: Sole supplier (Saveway)
B38: 19 | C38: SAVEWAY STUD:CONNECTING; TYPE 2; W/5M WIRE. 1315 | D38: 1 | E38: 36 | F38: R4,597.13 | G38: R4,597.13 | H38: R165,496.56 | I38: Each(For future emergency use) | J38: Sole supplier (Saveway)
B39: 20 | C39: SAVEWAY MOLD: STYROFOAM. 4555 | D39: 1 | E39: 36 | F39: R213.52 | G39: R213.52 | H39: R7,686.64 | I39: Each(Supplied with Rim Blocks) | J39: Sole supplier (Saveway)
B40: 21 | C40: SAVEWAY NUT, HEX: EXTENDED; RIM BLOCK LUGS. MECH_001 | D40: 1 | E40: 36 | F40: R18.82 | G40: R18.82 | H40: R677.40 | I40: Each(Supplied with Rim Blocks) | J40: Sole supplier (Saveway)
B41: 22 | C41: SAVEWAY SILICONE: CASTING; 310ML TUBE. MECH_002 | D41: 1 | E41: 36 | F41: R161.65 | G41: R161.65 | H41: R5,819.39 | I41: Each(Used for Rim Blocks) | J41: Sole supplier (Saveway)
B42: 23 | C42: SAVEWAY CONE: FOR CONNECTING STUD TYPE II. 594 | D42: 1 | E42: 36 | F42: R551.01 | G42: R551.01 | H42: R19,836.28 | I42: Each(Used for Rim Blocks) | J42: Sole supplier (Saveway)
B43: 24 | C43: SAVEWAY SCREW: M12 X 50MM; HEXAGON HEAD. 595 | D43: 1 | E43: 36 | F43: R26.54 | G43: R26.54 | H43: R955.45 | I43: Each(Used for Rim Blocks) | J43: Sole supplier (Saveway)
B44: 25 | C44: SAVEWAY WASHER, FLAT: M12. 964 | D44: 1 | E44: 36 | F44: R7.42 | G44: R7.42 | H44: R266.98 | I44: Each(Used for Rim Blocks) | J44: Sole supplier (Saveway)
B45: 26 | C45: SAVEWAY TERMINAL BOX, ALUMINUM, ALU UNPAINT. 230x280x110mm. | D45: 1 | E45: 36 | F45: R2,859.27 | G45: R2,859.27 | H45: R102,933.72 | I45: Each(Replace when needed) | J45: Sole supplier (Saveway)
B46: 27 | C46: SAVEWAY BLADE Terminal 4mm triple top grey | D46: 1 | E46: 36 | F46: R93.53 | G46: R93.53 | H46: R3,367.08 | I46: Each(Replace when needed) | J46: Sole supplier (Saveway)
B47: 28 | C47: SAVEWAY JUNCTION BOX LID: 163x100x12mm GP03 | D47: 1 | E47: 36 | F47: R1,331.16 | G47: R1,331.16 | H47: R47,921.76 | I47: Each(Replace when needed) | J47: Sole supplier (Saveway)
B48: 29 | C48: SAVEWAY JUNCTION BOX: 163x100x75mm GP03 | D48: 1 | E48: 36 | F48: R2,515.83 | G48: R2,515.83 | H48: R90,569.88 | I48: Each(Replace when needed) | J48: Sole supplier (Saveway)
B49: 30 | C49: SAVEWAY JUNCTION BOX LID: 283x183x12mm GP03 | D49: 1 | E49: 36 | F49: R1,684.67 | G49: R1,684.67 | H49: R60,648.12 | I49: Each(Replace when needed) | J49: Sole supplier (Saveway)
B50: 31 | C50: SAVEWAY JUNCTION BOX: 283x183x75mm GP03 | D50: 1 | E50: 36 | F50: R6,130.59 | G50: R6,130.59 | H50: R220,701.24 | I50: Each(Replace when needed) | J50: Sole supplier (Saveway)
B51: 32 | C51: SAVEWAY TECHNICIAN. NORMAL HOURS. 865t1 | D51: 1 | E51: 36 | F51: R650.00 | G51: =F51*9*2 -> R11,700.00 | H51: R421,200.00 | I51: Each(As Hoc) | J51: Sole supplier (Saveway)
B52: 33 | C52: Earth detector/Spider | D52: 2 | E52: =+D52*36 -> 72 | F52: R3,000.00 | G52: R3,000.00 | H52: =G52*36 -> R108,000.00 | J52: Sole supplier (Saveway)
B53: 34 | C53: Copper coil | D53: 1 | E53: 1 | F53: R2,000,000.00 | G53: R2,000,000.00 | H53: =+G53 -> R2,000,000.00 | I53: coil (once-off purchase) | J53: Furnace supliers
B54: 35 | C54: Thermocouple S-Type | D54: 4 | E54: =+D54*36 -> 144 | F54: R20,000.00 | G54: =D54*F54 -> R80,000.00 | H54: =G54*36 -> R2,880,000.00 | I54: thermocouple | J54: Instrumentation suppliers
B55: 36 | C55: Thermocouple K-Type | D55: 4 | E55: 144 | F55: R10,000.00 | G55: =D55*F55 -> R40,000.00 | H55: =G55*36 -> R1,440,000.00 | I55: thermocouple | J55: Instrumentation suppliers
B56: 37 | C56: Thermocouple S-Type 10 meter extention cables | D56: 4 | E56: 144 | F56: R1,000.00 | G56: R4,000.00 | H56: R144,000.00 | I56: Cables | J56: Instrumentation suppliers
B57: 38 | C57: Thermocouple K-Type 10 meter extention cables | D57: 4 | E57: 144 | F57: R1,000.00 | G57: R4,000.00 | H57: R144,000.00 | I57: Cables | J57: Instrumentation suppliers
A59: 4 ton Furnace Non-Ferrous | B59: 1 | C59: Refractory lining material | D59: 2125 | E59: =+D59*36 -> 76500 | F59: R34.20 | G59: =F59*D59 -> R72,675.00 | H59: =G59*36 -> R2,616,300.00 | I59: Mass in kg -bags | J59: Refractory suppliers
B60: 2 | C60: Refractory lining material installation (labour) | D60: 1 | E60: =+D60*36 -> 36 | F60: R24,636.00 | G60: =F60*D60 -> R24,636.00 | H60: =G60*36 -> R886,896.00 | I60: labour | J60: Refractory suppliers
B61: 3 | C61: Coil Grout material | D61: 500 | E61: =+D61*36 -> 18000 | F61: R44.72 | G61: =F61*D61 -> R22,360.00 | H61: =G61*36 -> R804,960.00 | I61: Mass in kg - bags | J61: Refractory suppliers
B62: 4 | C62: Refractory lining installation for 4 ton ladle (labour) | D62: 1 | E62: 36 | F62: R36,954.00 | G62: =F62*D62 -> R36,954.00 | H62: =G63*36 -> R556,200.00 | I62: LABOUR AND MIXING EQUIPMENT ONLY | J62: Refractory suppliers
B63: 5 | C63: Refractory lining installation for 1 tons ladle (labour) | D63: 1 | E63: 36 | F63: R15,450.00 | G63: =F63*D63 -> R15,450.00 | H63: =G62*36 -> R1,330,344.00 | I63: LABOUR AND MIXING EQUIPMENT ONLY | J63: Refractory suppliers
B64: 6 | C64: Steel former (made of carbon/mild steel) | D64: 1 | E64: 36 | F64: R38,912.00 | G64: =F64*D64 -> R38,912.00 | H64: =G64*36 -> R1,400,832.00 | I64: Former | J64: Refractory suppliers
B65: 7 | C65: SAVEWAY ELECTRODE PANEL SET. 4T PILLAR FURNACE. 7 PER SET (7xA-PANELS. H:1400) | D65: 1 | E65: =D65*36 -> 36 | F65: R44,854.40 | G65: =F65*D65 -> R44,854.40 | H65: =G65*36 -> R1,614,758.40 | I65: Set = Each(Use for every reline) | J65: Sole supplier (Saveway)
B66: 8 | C66: SAVEWAY FOIL:RF 4;25MX1MX0.42MM;PGP0042 25m/1x1000mm | D66: 1 | E66: =D66*36 -> 36 | F66: R27,163.91 | G66: R27,163.91 | H66: =G66*36 -> R977,900.70 | I66: Roll = 25m(Minor amount utilised per reline) | J66: Sole supplier (Saveway)
B67: 9 | C67: SAVEWAY FOIL:RF 4;25MX500MMX0.42MM;PGP0042 25m/2x500mm | D67: 1 | E67: 36 | F67: R27,571.37 | G67: R27,571.37 | H67: R992,569.21 | I67: Roll = 25m(Minor amount utilised per reline) | J67: Sole supplier (Saveway)
B68: 10 | C68: SAVEWAY FOIL:RF 4;25MX330X0.42MM;PGP0042 25m/3x330mm | D68: 1 | E68: 36 | F68: R27,978.83 | G68: R27,978.83 | H68: =G68*36 -> R1,007,237.72 | I68: Roll = 25m(Minor amount utilised per reline) | J68: Sole supplier (Saveway)
B69: 11 | C69: SAVEWAY SILICONE: E-PANEL; 300ML TUBE. 701 | D69: 1 | E69: 36 | F69: R8,717.91 | G69: R8,717.91 | H69: =G69*36 -> R313,844.67 | I69: Box = 20 tubes(Use for every reline) | J69: Sole supplier (Saveway)
B70: 12 | C70: SAVEWAY GREASE:CERAMIC,ANTI-SEIZE;500ML;CAN. 2202 | D70: 1 | E70: 36 | F70: R3,415.86 | G70: R3,415.86 | H70: R122,971.05 | I70: Each(Minor amount utilised per reline) | J70: Sole supplier (Saveway)
B71: 13 | C71: SAVEWAY BOLT,MACHINE:SS;II M12 X 35, 18-8 SS. 586 | D71: 1 | E71: 36 | F71: R207.37 | G71: R207.37 | H71: R7,465.36 | I71: Each(Replace when needed) | J71: Sole supplier (Saveway)
B72: 14 | C72: SAVEWAY WASHER, LOCK:12d=12.5MM A2. 587 | D72: 1 | E72: 36 | F72: R18.49 | G72: R18.49 | H72: R665.72 | I72: Each(Replace when needed) | J72: Sole supplier (Saveway)
B73: 15 | C73: SAVEWAY NUT, HEX: M12 A2. 588 | D73: 1 | E73: 36 | F73: R25.66 | G73: R25.66 | H73: R923.86 | I73: Each(Replace when needed) | J73: Sole supplier (Saveway)
B74: 16 | C74: SAVEWAY NUT, CAP: M12 A2. 589 | D74: 1 | E74: 36 | F74: R113.18 | G74: R113.18 | H74: R4,074.64 | I74: Each(Replace when needed) | J74: Sole supplier (Saveway)
B75: 17 | C75: SPACER: PIECE; 8 X 8 X 1.6MM; BRASS. 593 | D75: 1 | E75: 36 | F75: R46.23 | G75: R46.23 | H75: R1,664.25 | I75: Each(Replace when needed) | J75: Sole supplier (Saveway)
B76: 18 | C76: SAVEWAY STUD: CONNECTING; TYPE 2; W/3M WIRE. 1428 | D76: 1 | E76: 36 | F76: R3,918.80 | G76: R3,918.80 | H76: R141,076.64 | I76: Each(Supplied with Rim Blocks) | J76: Sole supplier (Saveway)
B77: 19 | C77: SAVEWAY STUD:CONNECTING; TYPE 2; W/5M WIRE. 1315 | D77: 1 | E77: 36 | F77: R4,597.13 | G77: R4,597.13 | H77: R165,496.56 | I77: Each(For future emergency use) | J77: Sole supplier (Saveway)
B78: 20 | C78: SAVEWAY MOLD: STYROFOAM. 4555 | D78: 1 | E78: 36 | F78: R213.52 | G78: R213.52 | H78: R7,686.64 | I78: Each(Supplied with Rim Blocks) | J78: Sole supplier (Saveway)
B79: 21 | C79: SAVEWAY NUT, HEX: EXTENDED; RIM BLOCK LUGS. MECH_001 | D79: 1 | E79: 36 | F79: R18.82 | G79: R18.82 | H79: R677.40 | I79: Each(Supplied with Rim Blocks) | J79: Sole supplier (Saveway)
B80: 22 | C80: SAVEWAY SILICONE: CASTING; 310ML TUBE. MECH_002 | D80: 1 | E80: 36 | F80: R161.65 | G80: R161.65 | H80: R5,819.39 | I80: Each(Used for Rim Blocks) | J80: Sole supplier (Saveway)
B81: 23 | C81: SAVEWAY CONE: FOR CONNECTING STUD TYPE II. 594 | D81: 1 | E81: 36 | F81: R551.01 | G81: R551.01 | H81: R19,836.28 | I81: Each(Used for Rim Blocks) | J81: Sole supplier (Saveway)
B82: 24 | C82: SAVEWAY SCREW: M12 X 50MM; HEXAGON HEAD. 595 | D82: 1 | E82: 36 | F82: R26.54 | G82: R26.54 | H82: R955.45 | I82: Each(Used for Rim Blocks) | J82: Sole supplier (Saveway)
B83: 25 | C83: SAVEWAY WASHER, FLAT: M12. 964 | D83: 1 | E83: 36 | F83: R7.42 | G83: R7.42 | H83: R266.98 | I83: Each(Used for Rim Blocks) | J83: Sole supplier (Saveway)
B84: 26 | C84: SAVEWAY TERMINAL BOX, ALUMINUM, ALU UNPAINT. 230x280x110mm. | D84: 1 | E84: 36 | F84: R2,859.27 | G84: R2,859.27 | H84: R102,933.72 | I84: Each(Replace when needed) | J84: Sole supplier (Saveway)
B85: 27 | C85: SAVEWAY BLADE Terminal 4mm triple top grey | D85: 1 | E85: 36 | F85: R93.53 | G85: R93.53 | H85: R3,367.08 | I85: Each(Replace when needed) | J85: Sole supplier (Saveway)
B86: 28 | C86: SAVEWAY JUNCTION BOX LID: 163x100x12mm GP03 | D86: 1 | E86: 36 | F86: R1,331.16 | G86: R1,331.16 | H86: R47,921.76 | I86: Each(Replace when needed) | J86: Sole supplier (Saveway)
B87: 29 | C87: SAVEWAY JUNCTION BOX: 163x100x75mm GP03 | D87: 1 | E87: 36 | F87: R2,515.83 | G87: R2,515.83 | H87: R90,569.88 | I87: Each(Replace when needed) | J87: Sole supplier (Saveway)
B88: 30 | C88: SAVEWAY JUNCTION BOX LID: 283x183x12mm GP03 | D88: 1 | E88: 36 | F88: R1,684.67 | G88: R1,684.67 | H88: R60,648.12 | I88: Each(Replace when needed) | J88: Sole supplier (Saveway)
B89: 31 | C89: SAVEWAY JUNCTION BOX: 283x183x75mm GP03 | D89: 1 | E89: 36 | F89: R6,130.59 | G89: R6,130.59 | H89: R220,701.24 | I89: Each(Replace when needed) | J89: Sole supplier (Saveway)
B90: 32 | C90: SAVEWAY TECHNICIAN. NORMAL HOURS. 865t1 | D90: 1 | E90: 36 | F90: R650.00 | G90: =F90*9*2 -> R11,700.00 | H90: R421,200.00 | I90: Each(As Hoc) | J90: Sole supplier (Saveway)
B91: 33 | C91: Earth detector/Spider | D91: 2 | E91: =+D91*36 -> 72 | F91: R3,000.00 | G91: R3,000.00 | H91: =G91*36 -> R108,000.00 | J91: Sole supplier (Saveway)
B92: 34 | C92: Copper coil | D92: 1 | E92: 1 | F92: R2,000,000.00 | G92: R2,000,000.00 | H92: =+G92 -> R2,000,000.00 | I92: coil (once-off purchase) | J92: Furnace supliers
B93: 35 | C93: Thermocouple S-Type | D93: 4 | E93: =+D93*36 -> 144 | F93: R20,000.00 | G93: =D93*F93 -> R80,000.00 | H93: =G93*36 -> R2,880,000.00 | I93: thermocouple | J93: Instrumentation suppliers
B94: 36 | C94: Thermocouple K-Type | D94: 4 | E94: 144 | F94: R10,000.00 | G94: =D94*F94 -> R40,000.00 | H94: =G94*36 -> R1,440,000.00 | I94: thermocouple | J94: Instrumentation suppliers
B95: 37 | C95: Thermocouple S-Type 10 meter extention cables | D95: 4 | E95: 144 | F95: R1,000.00 | G95: R4,000.00 | H95: R144,000.00 | I95: Cables | J95: Instrumentation suppliers
B96: 38 | C96: Thermocouple K-Type 10 meter extention cables | D96: 4 | E96: 144 | F96: R1,000.00 | G96: R4,000.00 | H96: R144,000.00 | I96: Cables | J96: Instrumentation suppliers
B97: 38 | C97: Copper coil | D97: 1 | E97: =+D97*36 -> 36 | F97: R2,000,000.00 | G97: R2,000,000.00 | H97: =G97*36 -> R72,000,000.00 | I97: coil (once of purchase) | J97: Furnace supliers
B98: 39 | C98: Thermocouple S-Type | D98: 2 | E98: 72 | F98: R50,000.00 | G98: R50,000.00 | J98: Instrumentation suppliers
B99: 40 | C99: Thermocouple K-Type | D99: 2 | E99: 72 | F99: R2,000.00 | G99: R2,000.00 | J99: Instrumentation suppliers
B100: 41 | C100: Thermocouple S-Type 10 meter extention cables | D100: 2 | E100: 72 | F100: R20,000.00 | G100: R20,000.00 | J100: Instrumentation suppliers
B101: 42 | C101: Thermocouple K-Type 10 meter extention cables | D101: 2 | E101: 72 | F101: R3,000.00 | G101: R3,000.00 | J101: Instrumentation suppliers
A103: Plasma cutter | B103: 1 | C103: NST -Hypertherm 125A cutting shield | D103: 1 | E103: =+D103*36 -> 36 | F103: R672.00 | G103: =F103*D103 -> R672.00 | H103: =G103*36 -> R24,192.00 | I103: Consumable | J103: Welding & Engineering suppliers
B104: 2 | C104: NST-HYPERTHERM 125A Retaining Caps | D104: 1 | E104: =+D104*E105 -> 36 | F104: R1,460.00 | G104: =F104*D104 -> R1,460.00 | H104: =G104*36 -> R52,560.00 | I104: Consumable | J104: Welding & Engineering suppliers
B105: 3 | C105: NST-Hypertherm 125A cutting nozzles | D105: 1 | E105: =+D105*36 -> 36 | F105: R384.00 | G105: R384.00 | H105: R13,824.00 | I105: Consumable | J105: Welding & Engineering suppliers
B106: 4 | C106: NST -Hypertherm 125A Electrodes PMX | D106: 1 | E106: =+D106*36 -> 36 | F106: R384.00 | G106: R384.00 | H106: R13,824.00 | I106: Consumable | J106: Welding & Engineering suppliers
B107: 5 | C107: NST-Hypertherm 125A Swirl Rings | D107: 1 | E107: =+D107*36 -> 36 | F107: R840.00 | G107: R840.00 | H107: R30,240.00 | I107: Consumable | J107: Welding & Engineering suppliers
